[Event "7th Sharjah Masters 2024"]
[Site "Sharjah"]
[Date "2024.05.18"]
[Round "5.37"]
[White "Dronavalli, Harika"]
[Black "Can, Emre"]
[Result "0-1"]
[ECO "E30"]
[WhiteElo "2504"]
[BlackElo "2549"]
[Annotator "TA"]
[PlyCount "143"]
[EventDate "2024.05.13"]
[EventType "swiss"]
[EventCountry "UAE"]
[SourceTitle "playchess.com"]
[Source "ChessBase"]
[SourceQuality "1"]
[TimeControl "5400+30"]

{[%evp 73,143,-328,-325,-579,-576,-992,-814,-1573,-651,-695,-992,-984,-954,-1105,-1083,-1132,-843,-1164,-1116,-1341,-1181,-1252,-1193,-1195,-631,-1254,-1145,-977,-992,-992,-339,-1228,-1243,-1212,-995,-1328,-731,-1268,-1098,-1164,0,-1361,0,-1521,-1156,-1571,-1008,-1377,-1236,-1581,-1489,-1970,-491,-2664,-1749,-2212,-1845,-29974,-29975,-29975,-29971,-29981,-29982,-29982,-29983,-29985,-29986,-29986,-29987,-29987,-29988,-29995]} 1. d4 {[%emt 0:00:11]} d5 {[%emt 0:00:23]} 2. c4 {[%emt 0:00:09]} e6 {[%emt 0:00:07]} 3. Nc3 {[%emt 0:00:09]} Nf6 {[%emt 0:00:39]} 4. Bg5 {[%emt 0:00:31]} Bb4 {[%emt 0:01:20]} 5. e3 {[%emt 0:01:26]} h6 {[%emt 0:00:32]} 6. Bh4 {[%emt 0:00:48]} c5 {[%emt 0:00:29]} 7. cxd5 {[%emt 0:03:57] E30: Nimzo-Indian: Leningrad Variation.} Qa5 {[%emt 0:00:11] Nowadays more popular than 7...exd5.} 8. Bxf6 {[%emt 0:04:02]} Bxc3+ {[%emt 0:00:37]} 9. bxc3 {[%emt 0:00:06]} Qxc3+ {[%emt 0:00:11]} 10. Ke2 {[%emt 0:00:12]} gxf6 {[%emt 0:00:08]} 11. Rc1 {[%emt 0:02:02]} Qb4 $146 {[%emt 0:00:09]} ({Predecessor:} 11... Qa3 12. Rxc5 Na6 13. Qc1 Qxc1 14. Rxc1 exd5 15. Kd2 Bf5 16. Ne2 Nb4 17. Ng3 Bg6 {1-0 Grischuk,A (2732)-Kosakowski,J (2479) Wch Blitz Samarkand 2023 (12)}) 12. Qd2 {[%emt 0:09:36]} Na6 {[%emt 0:10:24]} 13. dxc5 {[%emt 0:04:10]} O-O {[%emt 0:17:05]} 14. Nf3 {[%emt 0:18:13]} Rd8 {[%emt 0:03:37]} 15. d6 {[%emt 0:02:26]} b6 {[%emt 0:03:09]} 16. Qxb4 {[%emt 0:03:31]} Nxb4 {[%emt 0:00:48]} 17. a3 {[%emt 0:00:45]} Na6 {[%emt 0:03:40]} 18. cxb6 {[%emt 0:04:55]} axb6 {[%emt 0:01:32]} 19. Nd4 {[%emt 0:01:04]} Nc5 {[%emt 0:05:04]} 20. Ke1 {[%emt 0:06:03]} Rxd6 {[%emt 0:03:41]} 21. Bc4 {[%emt 0:02:35]} Bd7 {[%emt 0:02:00]} 22. Ra1 {[%emt 0:04:19]} e5 {[%emt 0:06:36]} 23. Nc2 {[%emt 0:06:13]} b5 {[%emt 0:11:26]} 24. Be2 {[%emt 0:00:12]} Bf5 {[%emt 0:00:56]} 25. Rd1 {[%emt 0:10:34]} Rxd1+ {[%emt 0:03:09]} 26. Bxd1 {[%emt 0:00:04]} Bxc2 {[%emt 0:00:44]} 27. Bxc2 {[%emt 0:00:04]} Rxa3 {[%emt 0:01:36]} 28. Kd2 {[%emt 0:00:21]} b4 {[%emt 0:04:44]} 29. Rc1 {[%emt 0:02:38]} Ra2 {[%emt 0:02:28]} 30. Ke1 {[%emt 0:07:01]} Rb2 {[%emt 0:06:37]} 31. Bh7+ {[%emt 0:00:46]} Kxh7 {[%emt 0:00:07]} 32. Rxc5 {[%emt 0:00:05]} Kg6 {[%emt 0:00:29]} 33. e4 {[%emt 0:03:19]} b3 {[%emt 0:00:29]} 34. Rb5 {[%emt 0:00:04]} f5 {[%emt 0:02:17]} 35. Rb6+ {[%emt 0:01:06]} f6 {[%emt 0:00:21]} 36. exf5+ {[%emt 0:00:29]} Kxf5 {[%emt 0:00:07]} 37. h3 {[%emt 0:00:18]} e4 {[%emt 0:02:06]} 38. g4+ $2 {[%emt 0:01:15]} (38. Rb5+ Ke6 (38... Kf4 $2 39. Kf1 $19) 39. g4) 38... Ke5 $19 {[%emt 0:00:16]} 39. Kf1 {[%emt 0:01:04]} Kd4 {[%emt 0:01:31]} 40. Kg1 {[%emt 0:02:16]} Kc5 {[%emt 0:00:32]} (40... Kc4 $142 41. Rc6+ Kb5) 41. Rb8 $19 {[%emt 0:00:14]} Kc4 {[%emt 0:00:06]} 42. Rc8+ {[%emt 0:00:12]} Kd3 {[%emt 0:00:22]} 43. Rb8 {[%emt 0:00:14]} Kc3 {[%emt 0:02:05]} 44. Rc8+ {[%emt 0:00:06]} Kd2 {[%emt 0:00:08]} 45. Rb8 {[%emt 0:00:11]} Kc1 {[%emt 0:02:52]} 46. Rb6 {[%emt 0:00:38]} Kd1 {[%emt 0:02:32]} 47. Kf1 {[%emt 0:00:37]} Kd2 {[%emt 0:00:37]} 48. Rb8 {[%emt 0:01:47]} Kc3 {[%emt 0:02:10]} 49. Rc8+ {[%emt 0:00:05]} Kd4 {[%emt 0:00:11]} 50. Rb8 {[%emt 0:00:51]} Kc4 {[%emt 0:01:34]} 51. Rc8+ {[%emt 0:00:05]} Kd5 $2 {[%emt 0:00:09]} (51... Kd3 52. Rb8 Rb1+ 53. Kg2 Kc3 54. Rc8+ Kb2) 52. Rb8 $2 {[%emt 0:00:30]} (52. Rc3) 52... Rb1+ $19 {[%emt 0:00:30]} 53. Kg2 {[%emt 0:00:27]} Kc4 {[%emt 0:00:17]} 54. Rc8+ {[%emt 0:00:22]} Kd3 {[%emt 0:00:09]} 55. Rb8 {[%emt 0:00:14]} Kc2 {[%emt 0:00:37]} 56. Rc8+ {[%emt 0:00:08]} Kd3 {[%emt 0:00:39]} 57. Rb8 $1 {[%emt 0:00:02]} Kc2 {[%emt 0:00:04]} 58. Rc8+ {[%emt 0:00:05]} Kb2 {[%emt 0:00:01]} 59. Rc6 {[%emt 0:00:03]} Rc1 {[%emt 0:00:18]} 60. Rxf6 {[%emt 0:00:09]} Rc2 {[%emt 0:00:40]} 61. Re6 {[%emt 0:03:32]} Kc3 {[%emt 0:01:49]} 62. Rc6+ {[%emt 0:00:57]} Kd3 {[%emt 0:00:41]} (62... Kd4 $142 63. Rb6 b2) 63. Rb6 $19 {[%emt 0:00:45]} b2 {[%emt 0:00:04]} 64. Kg3 {[%emt 0:00:21]} Kc3 {[%emt 0:00:41]} 65. Kf4 {[%emt 0:00:50]} Rxf2+ {[%emt 0:00:26]} 66. Kxe4 {[%emt 0:00:03]} Rh2 {[%emt 0:00:19]} 67. Kf5 {[%emt 0:00:41]} Rxh3 {[%emt 0:00:07]} 68. Kg6 {[%emt 0:00:36]} Kc2 {[%emt 0:00:08]} 69. Rc6+ {[%emt 0:00:05]} Rc3 {[%emt 0:00:13]} 70. Rb6 {[%emt 0:00:03]} Rb3 {[%emt 0:00:04]} ({Stronger than} 70... b1=B 71. Kxh6 Rh3+ 72. Kg6 $11) 71. Rc6+ {[%emt 0:00:01]} Kd2 {[%emt 0:00:16]} 72. Rb6 {[%emt 0:02:37]} 0-1

[Event "7th Sharjah Masters 2024"]
[Site "Sharjah"]
[Date "2024.05.18"]
[Round "5.38"]
[White "Erdos, Viktor"]
[Black "Gavrilescu, David"]
[Result "1/2-1/2"]
[ECO "A21"]
[WhiteElo "2546"]
[BlackElo "2540"]
[Annotator "TA"]
[PlyCount "39"]
[EventDate "2024.05.13"]
[EventType "swiss"]
[EventCountry "UAE"]
[SourceTitle "playchess.com"]
[Source "ChessBase"]
[SourceQuality "1"]
[TimeControl "5400+30"]

{[%evp 9,39,16,11,10,15,16,28,20,12,17,30,13,15,14,10,18,12,0,0,0,0,7,0,10,15,0,0,0,2,0,0,0]} 1. c4 {[%emt 0:00:04]} e5 {[%emt 0:00:22]} 2. Nc3 {[%emt 0:00:07]} Bb4 {[%emt 0:00:31]} 3. Nd5 {[%emt 0:00:06]} Be7 {[%emt 0:00:27]} 4. d4 {[%emt 0:01:34]} exd4 {[%emt 0:00:28]} 5. Qxd4 {[%emt 0:00:20]} Nf6 {[%emt 0:00:08]} 6. Nxe7 {[%emt 0:00:12]} Qxe7 {[%emt 0:00:07]} 7. Bg5 {[%emt 0:00:08]} Nc6 {[%emt 0:00:50]} 8. Qc3 {[%emt 0:00:09] White has an edge.} d6 {[%emt 0:00:21]} 9. Nf3 {[%emt 0:02:07][%cal Bg1f3,Bf3d4,Bd4b5][%mdl 32]} Ne5 {[%emt 0:01:25]} 10. g3 {[%emt 0:06:05]} h6 {[%emt 0:06:21] The position is equal.} 11. Bxf6 {[%emt 0:01:35]} Qxf6 {[%emt 0:00:08]} 12. Nd4 {[%emt 0:00:09]} Nc6 {[%emt 0:11:59]} 13. Nb5 {[%emt 0:07:49]} Qxc3+ {[%emt 0:02:16]} 14. Nxc3 {[%emt 0:00:04]} Be6 {[%emt 0:01:29]} 15. b3 {[%emt 0:00:07]} O-O-O {[%emt 0:08:26]} 16. Rd1 {[%emt 0:01:28]} Nb4 {[%emt 0:07:13]} 17. Bg2 {[%emt 0:04:24]} c6 {[%emt 0:00:50]} 18. O-O {[%emt 0:04:21]} a5 {[%emt 0:00:49]} 19. Rd2 {[%emt 0:02:27]} Rhe8 {[%emt 0:04:17]} 20. Rfd1 {[%emt 0:20:47] A rather calm draw.   Weighted Error Value: White=0.03 (flawless) /Black=0.02 (flawless) .  OK:         	White=6     	Black=6      Best:        	---       	Black=1} 1/2-1/2

[Event "7th Sharjah Masters 2024"]
[Site "Sharjah"]
[Date "2024.05.18"]
[Round "5.39"]
[White "Banusz, Tamas"]
[Black "Cardoso Cardoso, Jose Gabriel"]
[Result "*"]
[ECO "D02"]
[WhiteElo "2623"]
[BlackElo "2497"]
[Annotator "TA"]
[PlyCount "95"]
[EventDate "2024.05.13"]
[EventType "swiss"]
[EventCountry "UAE"]
[SourceTitle "playchess.com"]
[Source "ChessBase"]
[SourceQuality "1"]
[TimeControl "5400+30"]

{[%evp 24,95,32,20,30,30,35,25,22,14,35,14,58,12,15,0,5,-21,0,-29,-28,-31,0,-20,0,0,23,0,19,0,26,17,38,10,45,43,41,11,41,41,41,41,54,53,56,35,35,35,58,58,56,56,77,57,122,83,172,150,207,187,197,162,322,237,1459,1412,1436,1277,1258,1443,1405,1358,29981,29981]} 1. Nf3 {[%emt 0:00:05]} d5 {[%emt 0:00:09]} 2. d4 {[%emt 0:00:05]} Nf6 {[%emt 1:31:21]} 3. Bf4 {[%emt 0:00:05]} c5 {[%emt 0:00:20]} 4. e3 {[%emt 0:00:06]} Nc6 {[%emt 0:00:14]} 5. Be2 {[%emt 0:00:12]} cxd4 {[%emt 1:32:03]} 6. exd4 {[%emt 0:00:06] D02: 1 d4 d5 2 Nf3 sidelines, including 2...Nf6 3 g3 and 2...Nf6 3 Bf4.} Bg4 {[%emt 1:29:07]} 7. O-O {[%emt 0:00:54]} e6 {[%emt 0:00:34]} 8. Nbd2 {[%emt 0:00:45]} Bd6 {[%emt 0:07:51]} 9. Bxd6 {[%emt 0:00:56]} Qxd6 {[%emt 0:00:08]} 10. c3 {[%emt 0:00:11]} Bxf3 {[%emt 0:01:58]} 11. Nxf3 {[%emt 0:01:19]} O-O {[%emt 0:00:27]} 12. Re1 {[%emt 0:01:18]} Rfe8 $146 {[%emt 0:12:42]} ({Predecessor:} 12... Qc7 13. Bd3 Rab8 14. Rc1 b5 15. b4 Rfc8 16. a3 a5 17. Qd2 h6 18. h3 axb4 19. axb4 {1-0 Sandipan,C (2460)-Ahmad,A (2344) Dubai op-A 23rd 2023 (2)}) 13. Ne5 {[%emt 0:04:32]} Nd7 {[%emt 1:08:32]} ({Don't play} 13... Nxe5 14. dxe5 Qxe5 15. Bb5 $14) 14. f4 {[%emt 0:02:20]} Nf8 {[%emt 0:08:39]} 15. Qd2 {[%emt 1:25:06]} f6 {[%emt 0:01:21]} 16. Nd3 {[%emt 0:00:20]} Re7 {[%emt 0:03:08]} 17. Bf3 {[%emt 0:05:03]} Rae8 {[%emt 0:01:35]} 18. Re3 {[%emt 0:06:47]} (18. g3 $14) 18... Nd7 $11 {[%emt 0:56:05]} 19. Rae1 {[%emt 0:01:45]} f5 {[%emt 0:01:25]} 20. g4 {[%emt 0:01:29]} Nf6 $1 {[%emt 0:01:38]} 21. Qg2 {[%emt 1:05:01]} Ne4 {[%emt 0:01:07]} 22. Kh1 {[%emt 0:04:53]} Rf7 {[%emt 0:03:08]} 23. Rg1 {[%emt 0:05:45]} Kf8 {[%emt 0:06:35]} 24. Re2 {[%emt 0:05:52]} Ree7 {[%emt 0:03:44]} 25. Qh3 {[%emt 0:02:36]} g6 {[%emt 0:00:24]} 26. Qh4 {[%emt 0:09:24]} Ke8 {[%emt 0:01:15]} 27. Qe1 {[%emt 0:00:35]} a5 {[%emt 0:06:12]} 28. a4 {[%emt 0:04:39]} Kd8 {[%emt 0:01:57]} 29. h4 {[%emt 0:01:43]} Kc8 {[%emt 0:06:53]} 30. Rh2 {[%emt 0:01:05]} Rf8 {[%emt 0:01:43]} 31. g5 {[%emt 0:02:54]} Kb8 {[%emt 0:02:56]} 32. h5 {[%emt 0:00:36]} Rc8 {[%emt 0:00:39]} 33. hxg6 {[%emt 0:02:42]} hxg6 {[%emt 0:00:09]} 34. Rh6 {[%emt 0:00:40]} Rg7 {[%emt 0:00:20]} 35. Rg2 {[%emt 0:00:58]} Rcc7 {[%emt 0:04:28]} 36. Rgh2 {[%emt 0:00:39]} Ka7 {[%emt 0:00:11]} 37. Kg2 {[%emt 0:27:41]} Qe7 {[%emt 0:01:43]} 38. Qe3 {[%emt 0:25:55]} b6 {[%emt 0:00:34]} (38... Rc8 $14) 39. Be2 {[%emt 0:00:13]} Qd6 {[%emt 0:01:38]} (39... Rc8 $16) 40. Rh8 $18 {[%emt 0:01:43]} Rcd7 {[%emt 0:03:13]} (40... Qd7 $16 41. Ne1 Rc8) 41. Ne1 $18 {[%emt 0:04:20]} Rd8 {[%emt 0:03:44]} 42. Nf3 {[%emt 0:00:51]} Qb8 $2 {[%emt 0:01:55]} (42... Kb7 {is a better defense.} 43. R2h4 Qd7) 43. Qd3 {[%emt 0:19:08]} Kb7 $2 {[%emt 0:00:41]} ({And not} 43... Rxh8 44. Qa6#) ({Don't blunder} 43... Nb4 $2 44. cxb4 Ka8 45. R2h7 Rxh8 46. Rxg7 $18) (43... Qb7 44. Rxd8 Nxd8) 44. R2h7 $18 {[%emt 0:01:29]} Re7 {[%emt 0:00:52]} 45. Qa6+ {[%emt 0:01:23]} Kc7 {[%emt 0:00:01]} 46. Rxe7+ {[%emt 0:00:21]} Nxe7 {[%emt 0:00:04]} 47. Rh7 {[%emt 0:00:08]} Re8 {[%emt 0:01:36]} 48. Bb5 {[%emt 0:01:00]} *

[Event "7th Sharjah Masters 2024"]
[Site "Sharjah"]
[Date "2024.05.18"]
[Round "5.40"]
[White "Yilmaz, Mustafa"]
[Black "Raja Rithvik R"]
[Result "1/2-1/2"]
[ECO "D31"]
[WhiteElo "2641"]
[BlackElo "2524"]
[Annotator "TA"]
[PlyCount "64"]
[EventDate "2024.05.13"]
[EventType "swiss"]
[EventCountry "UAE"]
[SourceTitle "playchess.com"]
[Source "ChessBase"]
[SourceQuality "1"]
[TimeControl "5400+30"]

{[%evp 16,64,0,0,0,-21,-32,-21,-26,-19,0,0,0,0,0,-5,0,0,0,0,152,119,427,0,0,0,0,0,0,-12,-36,-38,-38,-22,-35,-22,-24,-28,-15,-23,-17,-61,0,0,0,0,0,0,0,0,0]} 1. c4 {[%emt 0:00:02]} e6 {[%emt 0:02:10]} 2. Nc3 {[%emt 0:00:05]} d5 {[%emt 0:00:05]} 3. d4 {[%emt 0:00:04]} c6 {[%emt 0:00:03]} 4. e4 {[%emt 0:00:03]} dxe4 {[%emt 0:00:07]} 5. Nxe4 {[%emt 0:00:06]} Bb4+ {[%emt 0:00:03]} 6. Bd2 {[%emt 0:00:05][%cal Bc1d2,Bd2b4,Bb4d6][%mdl 32]} Qxd4 {[%emt 0:00:06]} 7. Bxb4 {[%emt 0:00:04]} Qxe4+ {[%emt 0:00:05]} 8. Be2 {[%emt 0:00:05]} Na6 {[%emt 0:00:06]} 9. Bd6 {[%emt 0:00:14] Nf3 would now be deadly.} Qxg2 {[%emt 0:00:24]} 10. Bf3 {[%emt 0:00:07]} (10. Qd2 $5 Nf6 (10... Qxh1 $2 11. O-O-O $18) 11. Bf3 $11) 10... Qg5 {[%emt 0:00:03] ...Ne7 is the strong threat.} 11. Ne2 $1 {[%emt 0:00:04] Threatens to win with Rg1.} Ne7 {[%emt 0:00:51]} 12. Ng3 {[%emt 0:00:42]} Qa5+ {[%emt 0:02:15]} 13. b4 $1 {[%emt 0:04:59]} Nxb4 {[%emt 0:09:41] [#] aiming for ...Nc2+.} 14. O-O $1 {[%emt 0:01:06]} Na6 {[%emt 0:07:44][%cal Bb4a6,Ba6c5,Bc5d3][%mdl 32]} 15. Qb3 $1 {[%emt 0:02:53]} Nf5 {[%emt 0:13:29]} 16. Nxf5 {[%emt 0:08:47]} Qxf5 {[%emt 0:00:14]} 17. Kh1 {[%emt 0:06:32]} f6 $2 {[%emt 0:11:02]} ({Better is} 17... Nc5 $11 18. Qe3 Nd7 (18... Nd3 $2 19. Be4 $18)) 18. Rg1 $16 {[%emt 0:07:16][%mdl 1024] White has strong compensation. White has more active pieces. The black rooks are passive.} Kf7 {[%emt 0:01:03][%mdl 8192] [#]} (18... g6 $16) 19. Rae1 $2 {[%emt 0:15:27]} ({Only move:} 19. Bg4 $1 $18 {[%cal Rg4f5]} Nc5 (19... Qxf2 $2 {perishes.} 20. Bxe6+ Ke8 21. Bxc8 $18) 20. Qa3 Qe4+ 21. Bf3) 19... Nc5 $1 $11 {[%emt 0:15:51]} 20. Qe3 {[%emt 0:03:17]} Nd3 {[%emt 0:00:23]} 21. Rd1 {[%emt 0:05:37]} (21. Re2 $5 Ne5 $8 22. Bxe5 Qxe5 23. Qxe5 fxe5 24. Rxe5 $19) 21... Ne5 {[%emt 0:00:27]} 22. Be2 {[%emt 0:04:30] A strong pair of Bishops.} h5 {[%emt 0:10:50] And now ...Ng4 would win.} 23. Rg2 {[%emt 0:12:02]} g5 $1 {[%emt 0:06:22]} 24. Bxe5 {[%emt 0:12:53]} Qxe5 {[%emt 0:00:04]} 25. Qxe5 {[%emt 0:00:17]} fxe5 {[%emt 0:00:04]} 26. Rxg5 {[%emt 0:00:04]} Kf6 {[%emt 0:03:08]} 27. h4 {[%emt 0:00:47]} b6 {[%emt 0:02:06]} 28. Bxh5 {[%emt 0:02:06]} Ba6 {[%emt 0:00:37]} (28... Rh7 $1 $15 29. Kg2 (29. Rd8 Bb7 $17) 29... Ba6) 29. Rg6+ {[%emt 0:06:58] The position is equal.} Kf5 {[%emt 0:00:15]} 30. Rg5+ {[%emt 0:00:05]} Kf6 {[%emt 0:00:53][%cal Oh8h7] Hoping for ...Rh7!} 31. Rg6+ {[%emt 0:01:00]} Kf5 {[%emt 0:00:05]} 32. Rg5+ {[%emt 0:00:09]} Kf6 {[%emt 0:00:28] Weighted Error Value: White=0.33/Black=0.27 (precise) .  Loses game:     	---       	Black=1      Missed win:     	White=1     	---        Mistake:       	---       	Black=2      Inaccurate:     	White=1     	---        OK:         	White=12    	Black=8      Best:        	White=2     	---        Strong:       	White=4     	Black=2} 1/2-1/2

[Event "7th Sharjah Masters 2024"]
[Site "Sharjah"]
[Date "2024.05.18"]
[Round "5.41"]
[White "Sethuraman, S.P."]
[Black "Erdogmus, Yagiz Kaan"]
[Result "0-1"]
[ECO "B13"]
[WhiteElo "2593"]
[BlackElo "2554"]
[Annotator "TA"]
[PlyCount "98"]
[EventDate "2024.05.13"]
[EventType "swiss"]
[EventCountry "UAE"]
[SourceTitle "playchess.com"]
[Source "ChessBase"]
[SourceQuality "1"]
[TimeControl "5400+30"]

{[%evp 32,98,0,-79,-65,-143,-105,-116,-116,-114,-132,-118,-125,-118,-139,-118,-100,-154,-139,-131,-119,-156,-163,-500,-503,-542,-526,-560,-482,-402,-399,-407,-189,-542,-539,-539,-539,-782,-637,-795,-769,-772,-798,-1269,-1043,-29947,-29951,-29951,-29952,-29994,-1018,-1684,-1648,-1584,-1560,-29955,-29956,-12847,-12774,-5110,-5057,-29966,-29968,-29963,-29967,-29966,-29969,-29972,-29965]} 1. e4 {[%emt 0:00:11]} c6 {[%emt 0:00:05]} 2. d4 {[%emt 0:00:06]} d5 {[%emt 0:00:05]} 3. exd5 {[%emt 0:00:04]} cxd5 {[%emt 0:00:05]} 4. Bd3 {[%emt 0:00:05]} Nc6 {[%emt 0:00:23]} 5. c3 {[%emt 0:00:06]} Qc7 {[%emt 0:00:36]} 6. h3 {[%emt 0:00:06]} e6 $1 {[%emt 0:02:02][%mdl 4] is more profitable than 6...Nf6 at the moment. B13: Caro-Kann: Exchange Variation and Panov-Botvinnik Attack.} 7. Nf3 {[%emt 0:00:07]} Bd6 {[%emt 0:00:07]} 8. O-O {[%emt 0:00:30]} Nge7 {[%emt 0:00:31]} 9. Re1 {[%emt 0:00:36]} O-O {[%emt 0:04:24]} 10. b3 {[%emt 0:00:06]} Ng6 {[%emt 0:06:04]} 11. Ba3 {[%emt 0:23:10]} Bd7 $146 {[%emt 0:10:05]} ({Predecessor:} 11... Bxa3 12. Nxa3 Qa5 13. Nb1 Re8 14. Qc2 Qc7 15. Nbd2 Bd7 16. a3 e5 17. dxe5 Ncxe5 18. Nxe5 Rxe5 {1-0 Uzun,F (1966)-Yarar,M (1784) TUR-chT 1st League 2019 (3.7)}) 12. Bxd6 {[%emt 0:02:33]} Qxd6 {[%emt 0:00:02]} 13. Nbd2 {[%emt 0:00:07]} Rac8 {[%emt 0:02:19]} 14. Nf1 {[%emt 0:12:11]} Nf4 {[%emt 0:13:59]} 15. Bc2 {[%emt 0:02:45]} f6 {[%emt 0:03:02]} 16. Ne3 {[%emt 0:15:38]} Be8 {[%emt 0:18:17]} 17. h4 {[%emt 0:13:51]} (17. g3 $11 {remains equal.} Nxh3+ 18. Kg2) 17... Bh5 $17 {[%emt 0:04:31]} 18. g4 {[%emt 0:16:18]} (18. g3 $15) 18... Bg6 {[%emt 0:01:35]} 19. Bxg6 {[%emt 0:00:07]} hxg6 {[%emt 0:00:05]} 20. Ng2 {[%emt 0:03:35]} Nh3+ {[%emt 0:01:06]} 21. Kf1 {[%emt 0:00:04]} e5 {[%emt 0:10:54]} 22. Ng1 {[%emt 0:00:06]} Nxg1 {[%emt 0:01:01]} 23. Kxg1 {[%emt 0:00:03]} e4 {[%emt 0:00:12]} 24. f4 {[%emt 0:00:49]} (24. Qd2 $142) 24... b5 {[%emt 0:01:46]} 25. b4 {[%emt 0:01:36]} Nd8 {[%emt 0:01:33]} 26. Qb3 {[%emt 0:00:37]} f5 {[%emt 0:02:35]} 27. a4 $2 {[%emt 0:04:35]} (27. gxf5 {is tougher.} gxf5 28. Re3) 27... Ne6 $19 {[%emt 0:01:01]} (27... fxg4 28. Rxe4 Ne6 29. Re5 bxa4 (29... Nxf4 30. Nxf4 Rxf4 31. Rxd5 $11) 30. Rxa4 $15) 28. axb5 {[%emt 0:00:38]} Nxf4 {[%emt 0:00:45]} 29. Ra6 {[%emt 0:01:15]} Nh3+ {[%emt 0:00:25]} 30. Kh1 {[%emt 0:00:05]} Qg3 {[%emt 0:01:08]} 31. Re3 {[%emt 0:00:53]} Qxg4 {[%emt 0:00:40]} (31... Nf2+ 32. Kg1 Nh3+ (32... Qxg4 $2 33. Qxd5+ Kh8 34. Qe6 $19) 33. Kh1 Nf2+ (33... Qxg4 34. Kh2 $19) 34. Kg1 Qxg4 (34... Nh3+ $2 35. Kh1 $19) 35. Qxd5+ (35. Kxf2 $2 f4 $19) 35... Kh8 36. Qe6 $19 (36. Kxf2 $2 f4 $19)) (31... Qf2 $142 {[%csl Gh3][%cal Rf2g1]} 32. Ra1 (32. Rxh3 $2 fxg4 33. Qxd5+ Kh8 $19) (32. Qxd5+ $2 Kh8 $19) 32... Nf4 (32... fxg4 $2 33. Qxd5+ Kh7 34. Qa2 $19)) 32. Qxd5+ $2 {[%emt 0:00:03]} (32. Kh2 {nothing else works.} Nf4 33. Rg3) 32... Kh7 $19 {[%emt 0:07:40]} 33. Ra2 {[%emt 0:00:04]} f4 {[%emt 0:01:09]} 34. Qxe4 {[%emt 0:00:13]} Rce8 {[%emt 0:00:55]} 35. Qxe8 {[%emt 0:01:53]} Rxe8 {[%emt 0:00:01]} (35... fxe3 $2 36. Qxf8 e2 37. Qe7 (37. Rxa7 $2 e1=Q+) 37... Nf2+ 38. Kg1 Nh3+ 39. Kh2 $18) 36. Rxe8 {[%emt 0:00:04]} f3 {[%emt 0:00:04]} 37. Rf8 {[%emt 0:01:11]} Qg3 {[%emt 0:01:09]} 38. d5 {[%emt 0:00:49]} Nf2+ {[%emt 0:00:21]} 39. Rxf2 {[%emt 0:00:05]} Qxf2 {[%emt 0:00:03]} 40. Nf4 {[%emt 0:00:05]} Qe1+ {[%emt 0:00:58]} (40... Qg3 $142 41. h5 g5 42. Rh8+ Kxh8 43. h6 gxf4 (43... Qxf4 44. hxg7+ Kxg7 45. Kg1 Qg3+ 46. Kf1 Qg2+ 47. Ke1 Qe2#) 44. hxg7+ Kxg7 45. d6 Qg2#) 41. Kh2 $19 {[%emt 0:00:05]} f2 {[%emt 0:01:26]} (41... Qxc3 $2 42. Ne6 Qd2+ (42... Qxb4 43. Ng5+ Kh6 44. Rh8#) 43. Kg3 $19) 42. Nh3 {[%emt 0:00:07]} f1=N+ {[%emt 0:00:07]} ({Not} 42... f1=R 43. Ng5+ Kh6 44. Rh8#) 43. Kg2 {[%emt 0:00:46]} Qg3+ {[%emt 0:00:13]} 44. Kxf1 {[%emt 0:00:05]} Qxh3+ {[%emt 0:00:02]} 45. Ke2 {[%emt 0:00:24]} Qxc3 {[%emt 0:00:08]} 46. Rf4 {[%emt 0:00:18]} Qe5+ {[%emt 0:00:01]} 47. Kf3 {[%emt 0:00:12]} Qxd5+ {[%emt 0:00:02]} 48. Kg3 {[%emt 0:00:21]} Qxb5 {[%emt 0:00:20]} 49. Rg4 {[%emt 0:00:10]} Kh6 {[%emt 0:00:23]} 0-1